bitfinex-derivatives/quotes_ETHF0:USTF0_20251009
["timestamp","ask_amount","ask_price","bid_price","bid_amount"]
[1759997137099,3.33812808,4423.3,4423.2,0.76284334]
[1759997139506,0.40681,4423.3,4423.2,1.16966334]
[1759997139710,0.1808,4424.0,4423.7,0.3141]
[1759997139906,0.40675,4423.9,4423.8,0.3141]
[1759997140206,3.86893356,4423.9,4423.8,0.3141]
[1759997140603,0.40678,4423.6,4423.5,0.4386]
[1759997141108,3.32143836,4423.6,4423.5,0.4386]
[1759997143103,0.40681,4423.3,4423.2,0.00284334]
[1759997143305,0.95524145,4423.3,4423.2,0.00284334]
[1759997143610,3.85731323,4423.3,4423.2,0.00284334]
[1759997144109,3.85731323,4423.3,4422.1,0.3439]
[1759997144110,1.01719,4422.6,4422.1,0.3439]
[1759997144309,0.54843145,4422.5,4422.1,0.3439]
[1759997144503,3.43607334,4422.5,4422.1,0.3439]
[1759997144704,0.40691,4422.2,4422.1,0.3439]
[1759997144911,0.40689,4422.4,4422.3,0.2217]
[1759997145107,0.95594438,4422.4,4422.3,0.5656]
[1759997146509,0.54905438,4422.4,4422.3,0.5656]
[1759997148304,0.54905438,4422.4,4422.3,0.7869]
[1759997151809,0.54905438,4422.4,4422.3,0.3439]
[1759997152017,3.91894615,4422.4,4422.3,0.3439]
[1759997155712,0.40691,4422.2,4422.1,0.34575441]
[1759997156116,3.86516387,4422.2,4422.1,0.00185441]
[1759997156616,3.86516387,4422.2,4422.1,0.34575441]
[1759997156920,8.86516387,4422.2,4422.1,0.00185441]
[1759997158114,0.40693,4422.0,4421.9,0.7686]
[1759997158314,1.18198438,4422.0,4421.9,0.7686]
[1759997158515,0.40697,4421.5,4421.4,0.3439]
[1759997158711,0.40697,4421.5,4421.0,0.4684]
[1759997158712,0.40701,4421.1,4421.0,0.4684]
[1759997159007,0.40704,4420.8,4420.7,0.3439]
[1759997159202,0.40704,4420.8,4420.7,0.34656157]
[1759997159406,3.36634065,4420.8,4420.7,0.00266157]
[1759997159611,3.91429303,4420.8,4420.7,0.00266157]
[1759997159803,3.91429303,4420.8,4419.6,0.5656]
[1759997159804,3.73325303,4420.8,4419.6,0.5656]
[1759997160011,1.01766,4420.6,4419.5,0.3459]
[1759997160311,3.55578961,4420.5,4420.4,0.2217]
[1759997160515,3.55578961,4420.5,4420.4,0.3439]
[1759997160715,0.54795238,4420.5,4420.4,0.34589523]
[1759997160919,3.55578961,4420.5,4420.4,0.34589523]
[1759997163219,3.00783723,4420.5,4420.4,0.34589523]
[1759997163618,3.00783723,4420.5,4420.4,0.00199523]
[1759997165827,0.40709,4420.2,4420.1,0.7759]
[1759997166016,0.40715,4419.6,4419.5,0.4681]
[1759997166421,3.30730873,4419.6,4419.5,0.4681]
[1759997166820,3.30730873,4419.6,4419.5,0.47065938]
[1759997167125,3.30730873,4419.6,4419.5,0.00255938]
[1759997168119,2.90015873,4419.6,4419.5,0.47065938]
[1759997168518,0.40714,4419.8,4419.6,0.3439]
[1759997168727,2.98789335,4419.7,4419.6,0.3141]
[1759997169224,2.94896859,4419.8,4419.6,0.3141]
[1759997169423,0.40713,4419.9,4419.5,0.33395938]
[1759997169923,2.94896859,4419.8,4419.6,0.3141]
[1759997170121,2.94896859,4419.8,4419.7,0.5247]
[1759997170316,2.94896859,4419.8,4419.7,0.7319]
[1759997174928,3.35609859,4419.8,4419.7,0.7319]
[1759997175423,3.35609859,4419.8,4419.7,1.13904]
[1759997175628,2.94896859,4419.8,4419.7,0.7319]
[1759997175828,3.35609859,4419.8,4419.7,0.7319]
[1759997176723,3.35609859,4419.8,4419.7,1.13904]
[1759997176930,2.94896859,4419.8,4419.7,1.13904]
[1759997177928,3.35609859,4419.8,4419.7,1.13904]
[1759997179223,0.1809,4420.1,4419.7,1.13904]
[1759997179224,0.1809,4420.1,4420.0,0.53391]
[1759997179429,0.588,4420.1,4420.0,0.8587]
[1759997179629,0.4071,4420.1,4420.0,1.26581]
[1759997179921,0.40709,4420.3,4420.2,0.7319]
[1759997180124,0.4071,4420.1,4420.0,0.4409]
[1759997180319,0.40713,4419.8,4419.7,0.3141]
[1759997180933,0.40713,4419.8,4419.7,0.5213]
[1759997181831,3.31301164,4420.1,4420.0,0.4409]
[1759997182226,0.4071,4420.1,4420.0,0.4409]
[1759997182426,3.30179133,4420.1,4420.0,0.4409]
[1759997183825,2.89469133,4420.1,4420.0,0.6481]
[1759997184029,2.89469133,4420.1,4420.0,0.8587]
[1759997184729,0.40712,4419.9,4419.8,0.227]
[1759997184929,0.40712,4419.9,4419.8,0.5411]
[1759997185132,3.34857729,4419.9,4419.8,0.5411]
[1759997186124,3.34857729,4419.9,4419.8,0.7483]
[1759997187133,3.34857729,4419.9,4419.8,0.9589]
[1759997188134,3.89766567,4419.9,4419.8,0.5411]
[1759997188332,0.40713,4419.8,4419.7,1.0]
[1759997188528,0.95621838,4419.8,4419.7,1.0]
[1759997188727,3.86070361,4419.8,4419.7,1.0]
[1759997189838,4.08770361,4419.8,4419.7,1.0]
[1759997191136,9.08770361,4419.8,4419.7,1.0]
[1759997195639,9.08770361,4419.8,4419.5,0.00255938]
[1759997195844,0.40719,4419.2,4419.1,0.3141]
[1759997196042,0.95627838,4419.2,4419.1,0.3141]
[1759997196245,3.90864956,4419.2,4419.1,0.3141]
[1759997196839,3.90864956,4419.2,4419.1,0.31582659]
[1759997209845,1.018,4419.1,4416.6,2.02896426]
[1759997210054,0.40729,4418.1,4417.0,0.1267]
[1759997210240,1.18263498,4418.1,4418.0,1e-05]
[1759997210446,1.18263498,4418.1,4417.0,0.1267]
[1759997210447,0.40738,4417.1,4417.0,0.1267]
[1759997210858,3.39513827,4417.1,4417.0,0.12834357]
[1759997211045,0.40743,4416.6,4416.5,0.1267]
[1759997211348,3.32368984,4416.6,4416.5,0.1267]
[1759997211954,3.32368984,4416.6,4416.5,0.46064176]
[1759997212756,2.91625984,4416.6,4416.5,0.68544176]
[1759997212952,2.91625984,4416.6,4416.5,0.90554176]
[1759997213155,0.4074,4416.9,4416.5,0.57324176]
[1759997213353,2.89785707,4416.8,4416.7,0.4449]
[1759997213555,2.89785707,4416.8,4416.7,0.7772]
[1759997213752,2.89785707,4416.9,4416.7,0.85231]
[1759997214051,3.07895707,4417.0,4416.8,0.4449]
[1759997214052,0.1811,4417.0,4416.8,0.4449]
[1759997214254,0.1811,4417.0,4416.9,0.7772]
[1759997214855,0.1811,4417.0,4416.9,5.7772]
[1759997217850,0.1811,4417.0,4416.9,6.0042]
[1759997218456,0.40731,4417.9,4417.8,0.5571]
[1759997218858,3.35833682,4417.9,4417.8,0.5571]
[1759997219063,0.40733,4417.6,4417.5,0.1267]
[1759997219363,3.30497564,4417.6,4417.5,0.1267]
[1759997219559,3.30497564,4417.6,4417.5,0.459]
[1759997220754,0.40738,4417.1,4417.0,0.459]
[1759997221162,3.36689548,4417.1,4417.0,0.459]
[1759997227564,2.95951548,4417.1,4417.0,0.459]
[1759997227769,2.95951548,4417.1,4417.0,0.9039]
[1759997227969,3.40309895,4417.3,4417.1,0.3323]
[1759997228169,2.99573895,4417.5,4417.1,0.2248]
[1759997228365,0.00179461,4417.6,4417.5,0.1267]
[1759997228571,0.00179461,4417.6,4417.5,0.9039]
[1759997228772,3.00569989,4417.6,4417.5,1.31124]
[1759997228972,0.00179461,4417.6,4417.5,1.31124]
[1759997229167,0.181,4418.4,4418.0,0.1249]
[1759997229375,0.181,4418.4,4418.3,0.7571]
[1759997229573,0.4072,4419.1,4419.0,0.1249]
[1759997229769,0.076,4419.2,4419.1,0.3299]
[1759997229770,0.40719,4419.2,4419.1,0.3299]
[1759997230074,3.39940167,4419.2,4419.1,0.3299]
[1759997230265,3.9495984,4419.2,4419.1,0.3299]
[1759997230467,3.40211126,4419.2,4419.1,0.3299]
[1759997231365,8.94963227,4419.2,4419.0,0.1249]
[1759997231673,0.54750317,4419.1,4419.0,0.1249]
[1759997231870,0.54750317,4419.1,4419.0,0.4548]
[1759997232174,2.98100896,4419.1,4419.0,0.4548]
[1759997232670,2.98100896,4419.1,4419.0,0.6684]
[1759997232868,2.98100896,4419.1,4419.0,0.882]
[1759997233068,2.98100896,4419.1,4419.0,0.4548]
[1759997233268,2.98100896,4419.1,4419.0,0.1249]
[1759997234775,2.98100896,4419.1,4419.0,0.4548]
[1759997236771,2.98100896,4419.1,4419.0,0.882]
[1759997238375,2.98100896,4419.1,4419.0,6.2892]
[1759997238973,0.40705,4420.7,4420.5,0.1249]
[1759997239273,0.40705,4420.7,4420.5,0.4548]
[1759997239274,3.68657671,4420.6,4420.5,0.4548]
[1759997239876,0.40709,4420.2,4420.0,0.1249]
[1759997240073,0.63409,4420.2,4420.0,0.12729958]
[1759997240279,0.63409,4420.2,4419.5,0.1249]
[1759997240280,0.40715,4419.6,4419.5,0.4548]
[1759997240578,3.37034082,4419.6,4419.5,0.4548]
[1759997241174,3.37034082,4419.6,4419.5,0.45710293]
[1759997242373,3.37034082,4419.6,4419.5,0.67070293]
[1759997242775,2.96319082,4419.6,4419.5,0.88430293]
[1759997243186,0.40714,4419.7,4419.6,0.3299]
[1759997243477,3.34907696,4419.7,4419.6,0.3299]
[1759997245480,3.34907696,4419.7,4419.5,0.12720293]
[1759997245481,0.40715,4419.6,4419.5,0.12720293]
[1759997245774,0.4072,4419.1,4419.0,0.1249]
[1759997245975,0.4072,4419.1,4419.0,0.4548]
[1759997246181,3.34224884,4419.1,4419.0,0.4548]
[1759997246384,3.34224884,4419.1,4419.0,0.1249]
[1759997246775,3.34224884,4419.1,4419.0,0.12648949]
[1759997247579,3.34224884,4419.1,4419.0,0.45638949]
[1759997248381,3.34224884,4419.1,4419.0,0.66998949]
[1759997248881,3.34224884,4419.1,4419.0,0.45638949]
[1759997250988,3.34224884,4419.1,4419.0,0.66998949]
[1759997251188,2.93504884,4419.1,4419.0,0.88358949]
[1759997251589,0.40719,4419.2,4419.1,0.5435]
[1759997252085,3.34818727,4419.2,4419.1,0.5435]
[1759997252384,3.34818727,4419.2,4419.1,0.3299]
[1759997252580,3.57518727,4419.2,4419.1,0.3299]
[1759997253284,3.57518727,4419.2,4419.0,0.12648949]
[1759997253683,0.54760087,4419.1,4419.0,0.12648949]
[1759997254083,3.52482976,4419.1,4419.0,0.12648949]
[1759997255590,3.52482976,4419.1,4419.0,0.45638949]
[1759997255890,3.93202976,4419.1,4419.0,0.45638949]
[1759997257794,3.93202976,4419.1,4419.0,0.12648949]
[1759997258391,3.93202976,4419.1,4419.0,0.45638949]
[1759997259093,3.93202976,4419.1,4419.0,0.12648949]
[1759997259293,3.93202976,4419.1,4419.0,0.46528949]
[1759997259494,3.93202976,4419.1,4419.0,0.12648949]
[1759997260888,3.93202976,4419.1,4419.0,0.46528949]
[1759997261186,3.93357669,4419.1,4419.0,0.46528949]
[1759997261789,3.93357669,4419.1,4419.0,0.12648949]
[1759997262689,3.52637669,4419.1,4418.5,0.1249]
[1759997262993,0.40733,4417.6,4417.5,0.12331051]
[1759997263292,4.15469797,4417.6,4417.5,0.12331051]
[1759997263990,4.15469797,4417.6,4417.5,0.46071726]
[1759997264186,3.60595727,4417.6,4417.5,0.46071726]
[1759997267199,2.97162727,4417.6,4417.5,0.89391726]
[1759997267699,0.40731,4417.9,4417.7,0.5474]
[1759997267997,0.40731,4417.9,4417.8,0.3358]
[1759997268391,3.36456244,4417.9,4417.8,0.3358]
[1759997268797,3.36456244,4417.9,4417.8,0.5474]
[1759997269195,3.36456244,4417.9,4417.8,0.3358]
[1759997270299,3.36456244,4417.9,4417.5,0.46071726]
[1759997270300,0.40733,4417.6,4417.5,0.46071726]
[1759997270601,3.62270083,4417.6,4417.5,0.12491726]
[1759997271196,3.62270083,4417.6,4417.5,0.46071726]
[1759997273102,3.62270083,4417.6,4417.5,0.12491726]
[1759997273398,3.62270083,4417.6,4417.5,0.46071726]
[1759997273599,3.62270083,4417.6,4417.5,0.12491726]
[1759997275306,4.17139265,4417.6,4417.5,0.46071726]
[1759997275713,3.62270083,4417.6,4417.5,0.46071726]
[1759997275913,4.17138674,4417.6,4417.5,0.46071726]
[1759997276213,4.17141527,4417.6,4417.5,0.46071726]
[1759997276618,3.62270083,4417.6,4417.5,0.46071726]
[1759997276915,3.62270083,4417.6,4417.5,0.67231726]
[1759997279512,3.39570083,4417.6,4417.5,0.67231726]
[1759997281319,2.98837083,4417.6,4417.5,0.67231726]
[1759997281515,3.39570083,4417.6,4417.5,0.67231726]
[1759997281716,0.40733,4417.6,4417.5,0.67231726]
[1759997282017,3.32114611,4417.6,4417.5,0.67231726]
[1759997282420,2.91381611,4417.6,4417.5,0.67231726]
[1759997282620,2.91381611,4417.6,4417.5,0.89391726]
[1759997282820,0.40733,4417.7,4417.5,0.55811726]
[1759997283021,0.40733,4417.7,4417.6,0.3358]
[1759997283319,3.30256959,4417.7,4417.6,0.3358]
[1759997283521,2.89523959,4417.7,4417.6,0.3358]
[1759997283816,0.40732,4417.7,4417.6,0.3358]
[1759997284018,0.40732,4417.7,4417.6,0.5474]
[1759997284218,3.35245898,4417.7,4417.6,0.5474]
[1759997284715,3.35245898,4417.7,4417.6,0.769]
[1759997287821,0.40733,4417.6,4417.5,0.12491726]
[1759997288017,1.18409375,4417.6,4417.5,0.12491726]
[1759997288218,4.16497864,4417.6,4417.5,0.12491726]
[1759997289021,4.16497864,4417.6,4417.5,0.45741726]
[1759997290017,3.53064864,4417.6,4417.5,0.88501726]
[1759997290216,0.181,4418.0,4417.9,0.7601]
[1759997290426,0.181,4418.0,4417.9,0.3325]
[1759997290722,0.181,4418.0,4417.5,0.12491726]
[1759997290723,0.40732,4417.8,4417.6,0.3325]
[1759997290931,0.40738,4417.1,4417.0,0.1375]
[1759997291224,0.40738,4417.1,4416.5,0.47]
[1759997291225,0.40743,4416.6,4416.5,0.47]
[1759997291424,3.20883501,4417.1,4417.0,0.4689]
[1759997291425,3.38921501,4417.1,4417.0,0.4689]
[1759997291619,1.18436611,4417.1,4417.0,0.4689]
[1759997291930,4.19521048,4417.1,4417.0,0.4710053]
[1759997292323,4.19521048,4417.1,4417.0,0.1385053]
[1759997292623,4.19521048,4417.1,4417.0,0.4710053]
[1759997294726,3.96821048,4417.1,4417.0,0.4710053]
[1759997294923,4.19521048,4417.1,4417.0,0.4710053]
[1759997295525,3.96821048,4417.1,4417.0,0.4710053]
[1759997295828,4.19521048,4417.1,4417.0,0.4710053]
[1759997297628,4.19521048,4417.1,4417.0,0.1385053]
[1759997298432,4.19521048,4417.1,4417.0,0.4710053]
[1759997299122,4.19521048,4417.1,4417.0,0.1385053]
[1759997300329,0.40747,4416.1,4416.0,0.4689]
[1759997300631,3.30238641,4416.1,4416.0,0.4689]
[1759997301031,2.89491641,4416.1,4416.0,0.8965]
[1759997301224,2.89491641,4416.1,4416.0,0.89907341]
[1759997301429,0.40746,4416.2,4416.1,0.3325]
[1759997301836,3.30450265,4416.2,4416.1,0.3325]
[1759997303932,2.89704265,4416.2,4416.1,0.5483]
[1759997304338,0.40746,4416.3,4416.2,0.3325]
[1759997304735,3.34124157,4416.3,4416.2,0.3325]
[1759997309640,0.40756,4415.6,4415.5,0.1364]
[1759997309844,0.63456,4415.6,4415.5,0.4689]
[1759997310140,3.62346996,4415.6,4415.5,0.4689]
[1759997310740,3.62346996,4415.6,4415.5,0.47145657]
[1759997311530,3.62346996,4415.6,4415.5,0.13895657]
[1759997311735,4.1718074,4415.6,4415.5,0.13895657]
[1759997312738,0.4076,4415.1,4414.5,0.1364]
[1759997312940,0.6346,4415.1,4414.5,0.4689]
[1759997313145,3.55373272,4415.1,4414.7,0.3325]
[1759997313641,0.40767,4414.5,4413.5,0.071]
[1759997313836,0.40767,4414.4,4413.6,0.40774]
[1759997314042,0.40769,4414.2,4413.4,0.40776]
[1759997314343,2.97200684,4414.1,4413.7,0.40773]
[1759997314547,2.97200684,4414.1,4413.2,0.174]
[1759997314746,3.29465155,4414.2,4413.6,0.40774]
[1759997314947,0.40769,4414.2,4413.6,0.40774]
[1759997315143,0.227,4414.4,4413.2,0.1767542]
[1759997315144,0.40768,4414.3,4413.7,0.40773]
[1759997315342,2.88696155,4414.1,4413.2,0.0027542]
[1759997315537,3.29464155,4414.3,4413.9,0.40771]
[1759997315741,0.40768,4414.3,4413.9,0.40771]
[1759997316242,0.40768,4414.3,4413.3,1.01943]
[1759997316243,2.89404855,4414.2,4414.0,0.4077]
[1759997316642,2.89404855,4414.2,4413.2,0.0027542]
[1759997316643,2.9561026,4414.3,4414.1,0.40769]
[1759997316937,2.9561026,4414.5,4414.1,0.40769]
[1759997317240,3.1831026,4414.7,4414.0,0.4077]
[1759997317435,2.9561026,4414.6,4414.0,0.4077]
[1759997317639,0.40768,4414.3,4414.0,0.4077]
[1759997317840,0.40769,4414.2,4414.0,0.4077]
[1759997318042,3.40018542,4414.2,4414.0,0.4077]
[1759997318237,0.4077,4414.1,4413.8,0.40772]
[1759997318438,0.4077,4414.1,4413.9,0.40771]
[1759997318639,2.99249542,4414.1,4413.2,0.0027542]
[1759997318838,0.40772,4413.9,4413.5,0.40774]
[1759997319045,0.40951909,4413.9,4413.7,0.40773]
[1759997319238,2.94118543,4413.8,4413.7,0.40773]
[1759997319846,2.94118543,4413.8,4413.5,0.40774]
[1759997320046,0.40773,4413.7,4413.6,0.40774]
[1759997320446,3.37146022,4413.7,4413.6,0.40774]
[1759997320649,2.96373022,4413.7,4413.5,0.40775]
[1759997320955,2.96373022,4413.7,4413.2,0.2297542]
[1759997320956,3.36316208,4413.8,4413.7,0.40773]
[1759997321152,2.95544208,4413.8,4413.7,0.40773]
[1759997321452,0.00179909,4413.9,4413.2,0.0027542]
[1759997321453,0.40773,4413.7,4413.2,0.0027542]
[1759997321651,2.91835372,4413.8,4413.6,0.40774]
[1759997321856,0.00179909,4413.9,4413.6,0.40774]
[1759997322152,3.32607372,4413.8,4413.7,0.40773]
[1759997323444,2.91835372,4413.8,4413.4,0.40776]
[1759997323642,2.91835372,4413.8,4413.7,0.40773]
[1759997323849,3.32607372,4413.8,4413.3,0.227]
[1759997324154,2.91835372,4413.8,4413.7,0.40773]
[1759997325751,3.32607372,4413.8,4413.7,0.40773]
[1759997327050,2.91835372,4413.8,4413.7,0.40773]
[1759997327359,0.40776,4413.5,4413.3,0.63476]
[1759997327556,0.40776,4413.5,4413.4,0.40776]
[1759997327860,0.40774,4413.7,4413.5,0.40774]
[1759997328056,0.40774,4413.7,4413.3,0.227]
[1759997328248,2.88127971,4413.6,4413.3,0.227]
[1759997328646,3.28901971,4413.6,4413.3,0.227]
[1759997328852,2.88127971,4413.6,4413.5,0.40775]
[1759997330056,0.00179909,4413.9,4413.5,6.01938]
[1759997330246,0.00179909,4413.9,4413.8,0.40772]
[1759997330759,0.00179909,4413.9,4413.8,5.40772]
[1759997331664,0.00179909,4413.9,4413.8,5.63472]
[1759997334253,0.00179909,4413.9,4413.2,40.8027542]
[1759997334254,0.40772,4413.8,4413.7,0.40773]
[1759997334456,2.98701092,4413.9,4413.2,0.0027542]
[1759997334661,0.40777,4413.4,4413.3,0.227]
[1759997334862,0.40775,4413.6,4413.4,0.40775]
[1759997335066,0.40775,4413.6,4413.5,0.40775]
[1759997335359,3.30218521,4413.6,4413.5,0.40775]
[1759997335955,3.30218521,4413.6,4413.5,0.63475]
[1759997336160,2.89443521,4413.6,4413.5,0.63475]
[1759997336460,0.40774,4413.6,4413.5,0.227]
[1759997336661,0.40774,4413.6,4413.5,0.63475]
[1759997336960,3.40377235,4413.6,4413.5,0.63475]
[1759997337452,2.99603235,4413.6,4413.5,0.63475]
[1759997337859,3.31117108,4413.7,4413.6,0.40774]
[1759997338061,0.40773,4413.7,4413.6,0.40774]
[1759997338262,0.40775,4413.5,4413.4,0.227]
[1759997338666,3.38782684,4413.5,4413.4,0.227]
[1759997338957,0.40777,4413.3,4413.2,0.0027542]
[1759997339456,8.99950684,4413.3,4412.1,0.227]
[1759997339758,0.40784,4412.6,4412.1,0.227]
[1759997339957,0.40784,4412.6,4412.3,0.40786]
[1759997340154,3.20707684,4413.3,4412.1,0.227]
[1759997340155,0.40787,4412.3,4412.1,0.227]
[1759997340459,1.0195,4413.0,4411.6,0.227]
[1759997340460,0.40791,4411.8,4411.6,0.227]
[1759997340758,0.40791,4411.9,4411.6,0.00175799]
[1759997341057,0.40786,4412.4,4411.6,0.40967799]
[1759997341262,2.95796395,4411.8,4411.6,0.40967799]
[1759997341464,0.40789,4412.0,4411.6,0.40967799]
[1759997341659,2.93429006,4411.9,4411.7,0.40792]
[1759997341959,0.227,4412.5,4411.9,0.40789]
[1759997341960,0.40785,4412.5,4411.9,0.40789]
[1759997342160,0.06915431,4412.4,4412.3,0.3358]
[1759997342358,0.00179909,4413.9,4412.8,0.3358]
[1759997342556,2.93429006,4412.9,4412.8,0.3358]
[1759997342759,2.91553246,4413.5,4412.8,0.3358]
[1759997342965,0.227,4413.6,4412.3,1.24666]
[1759997343157,0.40774,4413.6,4413.5,0.4727]
[1759997343662,3.32327246,4413.6,4413.5,0.1369]
[1759997343862,3.32327246,4413.6,4413.5,0.4727]
[1759997344358,0.40779,4413.1,4413.0,0.1369]
[1759997344766,3.35274287,4413.1,4413.0,0.1369]
[1759997345460,2.94495287,4413.1,4413.0,0.1369]
[1759997345964,2.89945947,4413.2,4413.0,0.1369]
[1759997346262,1.21850933,4413.9,4413.0,0.1369]
[1759997346263,0.40777,4413.4,4413.0,0.1369]
[1759997346472,0.40777,4413.4,4413.1,0.3358]
[1759997346764,3.30722947,4413.3,4413.1,0.3358]
[1759997347162,3.39150566,4413.4,4413.1,0.3358]
[1759997347365,2.98374566,4413.2,4413.1,0.3358]
[1759997347560,0.40779,4413.1,4413.0,0.1369]
[1759997348060,3.3413343,4413.1,4413.0,0.1369]
[1759997348460,8.3413343,4413.1,4413.0,0.1369]
[1759997349957,0.40784,4412.6,4412.5,0.4727]
[1759997350158,0.40788,4412.1,4412.0,0.4727]
[1759997350361,0.40792,4411.8,4411.6,0.33755799]
[1759997350667,2.8948739,4411.7,4411.6,0.33755799]
[1759997351963,3.1218739,4411.7,4411.6,0.33755799]
[1759997352463,2.8948739,4411.7,4411.6,0.33755799]
[1759997352668,3.1218739,4411.7,4411.6,0.33755799]
[1759997353266,3.1218739,4411.7,4411.6,0.00175799]
[1759997353466,0.40797,4411.1,4411.0,0.1369]
[1759997353664,0.63497,4411.1,4411.0,0.1369]
[1759997353972,0.40801,4410.7,4410.5,0.1369]
[1759997354168,2.96774752,4411.1,4410.6,0.3358]
[1759997354373,2.96963264,4411.1,4411.0,0.4727]
[1759997354668,0.00188512,4411.1,4411.0,0.4727]
[1759997354874,2.93918014,4411.1,4411.0,0.4727]
[1759997356277,3.16618014,4411.1,4411.0,0.4727]
[1759997357374,2.93918014,4411.1,4411.0,0.4727]
[1759997357570,3.16618014,4411.1,4411.0,0.4727]
[1759997357772,2.93918014,4411.1,4411.0,0.4727]
[1759997357972,2.93918014,4411.1,4411.0,0.1369]
[1759997358178,3.95915014,4411.1,4410.6,0.00250907]
[1759997358383,0.40801,4410.7,4410.6,0.33830907]
[1759997358577,0.63501,4410.7,4410.6,0.33830907]
[1759997358780,3.52092653,4410.7,4410.6,0.33830907]
[1759997359187,3.52092653,4410.7,4410.6,0.00250907]
[1759997359484,0.40805,4410.3,4410.2,0.3358]
[1759997359682,0.63504,4410.5,4410.0,0.1369]
[1759997359981,2.96727189,4410.3,4410.0,0.1369]
[1759997360177,2.96727189,4410.5,4410.2,0.40806]
[1759997360487,2.96727189,4410.4,4410.3,0.3358]
[1759997360784,2.96727189,4410.5,4410.3,0.40805]
[1759997361080,0.227,4410.9,4410.5,0.1369]
[1759997361081,3.36303383,4410.6,4410.5,0.1369]
[1759997361275,3.36303383,4410.6,4410.5,0.4727]
[1759997361473,0.40802,4410.6,4410.5,0.4727]
[1759997361678,3.3329374,4410.6,4410.5,0.4727]
[1759997362682,3.5599374,4410.6,4410.5,0.1369]
[1759997363484,3.5599374,4410.6,4410.5,0.4727]
[1759997366076,2.9249174,4410.6,4410.5,0.4727]
[1759997366381,2.90469536,4410.7,4410.5,0.1369]
[1759997366693,0.40801,4410.7,4410.6,0.3358]
[1759997367083,3.28775344,4410.7,4410.6,0.3358]
[1759997370994,3.28775344,4410.7,4410.5,0.1369]
[1759997370995,0.40802,4410.6,4410.5,0.1369]
[1759997371294,3.29815461,4410.6,4410.5,0.4634]
[1759997372097,3.29815461,4410.6,4410.5,0.1369]
[1759997372295,3.29815461,4410.6,4410.5,0.4634]
[1759997372599,3.52515461,4410.6,4410.5,0.4634]
[1759997372897,3.52515461,4410.6,4410.5,0.1369]
[1759997374003,4.06954904,4410.6,4410.5,0.1369]
[1759997374996,4.06954904,4410.6,4410.5,0.4634]
[1759997378593,3.84254904,4410.6,4410.5,0.4634]
[1759997378799,4.06954904,4410.6,4410.5,0.4634]
[1759997379000,3.84254904,4410.6,4410.5,0.4634]
[1759997381201,3.43452904,4410.6,4410.5,0.4634]
[1759997381602,3.84254904,4410.6,4410.5,0.4634]
[1759997383104,3.43452904,4410.6,4410.5,5.87143]
[1759997383303,0.1813,4410.8,4410.5,5.87143]
[1759997383304,0.1813,4410.8,4410.7,0.40801]
[1759997383602,3.89555766,4410.8,4410.7,0.3265]
[1759997384006,3.34886822,4410.8,4410.7,0.73451]
[1759997384197,2.94086822,4410.8,4410.7,0.73451]
[1759997385203,3.34886822,4410.8,4410.7,0.96151]
[1759997385402,2.94086822,4410.8,4410.7,0.96151]
[1759997385605,0.00188512,4411.1,4411.0,0.87308]
[1759997386108,0.00188512,4411.1,4411.0,5.87308]
[1759997386604,1.01955,4412.8,4412.5,0.1245]
[1759997386804,1.01955,4412.8,4412.6,0.3406]
[1759997386805,0.94603358,4412.7,4412.6,0.3406]
[1759997387004,3.87511613,4412.7,4412.6,0.3406]
[1759997387509,3.8776503,4412.7,4412.6,0.3406]
[1759997388206,0.40788,4412.1,4412.0,0.1245]
[1759997388408,0.40793,4411.6,4411.3,0.144]
[1759997388809,2.99427131,4411.6,4411.3,0.55195]
[1759997389004,2.99427131,4411.6,4411.4,0.40794]
[1759997389211,0.40792,4411.7,4411.5,0.97274]
[1759997389409,2.95593346,4411.6,4411.5,0.97274]
[1759997389708,0.00253417,4412.7,4412.6,0.4403]
[1759997390011,0.00253417,4412.7,4412.5,0.3418]
[1759997390211,0.41036417,4412.7,4412.6,0.3406]
[1759997391108,3.33196434,4412.7,4412.6,0.3406]
[1759997391910,3.33196434,4412.7,4412.5,0.1245]
[1759997392110,3.33196434,4412.7,4412.2,0.3406]
[1759997392111,0.40786,4412.3,4412.2,0.3406]
[1759997392514,3.35003835,4412.3,4412.2,0.3406]
[1759997392707,0.40788,4412.1,4412.0,0.1245]
[1759997393102,3.36877282,4412.1,4412.0,0.1245]
[1759997393716,3.36877282,4412.1,4411.5,0.4651]
[1759997393717,0.40793,4411.6,4411.5,0.4651]
[1759997394214,3.31759619,4411.6,4411.5,0.4651]
[1759997395313,2.90966619,4411.6,4411.5,5.9054]
[1759997395515,0.40784,4412.6,4412.5,0.3418]
[1759997395725,0.40784,4412.6,4412.5,0.4651]
[1759997395912,3.35162818,4412.6,4412.5,0.1245]
[1759997396118,3.35162818,4412.6,4412.5,0.4651]
[1759997397014,3.35162818,4412.6,4412.5,0.6824]
[1759997397317,3.35162818,4412.6,4412.5,0.4651]
[1759997397719,0.40788,4412.1,4412.0,0.4651]
[1759997397916,1.01965,4412.4,4411.5,0.1245]
[1759997397917,0.40793,4411.6,4411.5,0.4651]
[1759997398321,3.29623252,4411.6,4411.5,0.4651]
[1759997399917,3.29623252,4411.6,4411.5,0.1245]
[1759997400315,3.29623252,4411.6,4411.1,0.3157]
[1759997400316,0.40797,4411.2,4411.1,0.3157]
[1759997400818,3.30949064,4411.2,4411.1,0.3157]
[1759997401216,3.30949064,4411.2,4411.1,0.5415]
[1759997401416,3.30949064,4411.2,4411.1,0.3157]
[1759997401822,3.30949064,4411.2,4411.0,0.1245]
[1759997402019,3.30949064,4411.2,4411.1,0.3157]
[1759997402224,3.30949064,4411.2,4411.1,0.5415]
[1759997402922,3.30949064,4411.2,4411.1,0.3157]
[1759997404420,3.30949064,4411.2,4411.0,0.1245]
[1759997404621,3.30949064,4411.2,4411.1,0.3157]
[1759997405126,2.90152064,4411.2,4411.1,0.7714]
[1759997405625,0.1813,4411.9,4411.5,0.1254]
[1759997405824,0.1813,4411.9,4411.8,0.7714]
[1759997406024,0.40784,4412.6,4412.5,0.4411]
[1759997406320,0.40784,4412.6,4412.5,0.6669]
[1759997406321,3.36824884,4412.6,4412.5,0.6669]
[1759997407024,3.36824884,4412.6,4412.5,0.4411]